bitfinex-derivatives/quotes_BTCF0:USTF0_20250427
["timestamp","ask_amount","ask_price","bid_price","bid_amount"]
[1745742779640,0.2119929,94322.0,94321.0,0.4554]
[1745742779944,0.2119929,94322.0,94321.0,0.4231]
[1745742780345,0.2425929,94322.0,94321.0,0.4231]
[1745742781746,0.2425929,94322.0,94321.0,0.6350952]
[1745742783147,0.2425929,94322.0,94321.0,0.2742952]
[1745742783341,0.2425929,94322.0,94321.0,0.6350952]
[1745742784445,0.2425929,94322.0,94321.0,0.4231]
[1745742784854,0.2425929,94322.0,94321.0,0.6350952]
[1745742787654,0.2425929,94322.0,94321.0,0.4231]
[1745742787950,0.2425929,94322.0,94321.0,0.6350952]
[1745742789751,0.2425929,94322.0,94321.0,0.2742952]
[1745742790250,0.2425929,94322.0,94321.0,0.6350952]
[1745742790651,0.2425929,94322.0,94321.0,0.2742952]
[1745742790950,0.2425929,94322.0,94321.0,0.6350952]
[1745742791343,0.0013,94331.0,94330.0,0.2119749]
[1745742791545,0.0013,94331.0,94330.0,0.5727749]
[1745742792041,0.0013,94331.0,94330.0,0.6927749]
[1745742792453,0.0013,94331.0,94330.0,0.7259749]
[1745742794350,0.0013,94331.0,94330.0,1.11416334]
[1745742800656,1e-08,94331.0,94330.0,1.22017534]
[1745742803043,1e-08,94331.0,94330.0,1.11416334]
[1745742807650,1e-08,94331.0,94330.0,1.47496334]
[1745742810455,1e-08,94331.0,94330.0,0.75336334]
[1745742810756,1e-08,94331.0,94330.0,1.47496334]
[1745742812151,1e-08,94331.0,94330.0,1.50566334]
[1745742815662,0.6257023,94355.0,94354.0,0.211921]
[1745742816849,0.63355566,94355.0,94354.0,0.211921]
[1745742817253,0.3608,94355.0,94354.0,0.211921]
[1745742817557,0.2745143,94357.0,94356.0,0.2119165]
[1745742817757,0.2649034,94355.0,94354.0,0.2119201]
[1745742818060,0.2119233,94353.0,94352.0,0.2426248]
[1745742822254,0.2119233,94353.0,94352.0,0.6034248]
[1745742823559,0.2119233,94353.0,94352.0,0.3608]
[1745742827161,0.3319233,94353.0,94352.0,0.3608]
[1745742828163,0.2119233,94353.0,94352.0,0.3608]
[1745742833265,0.3319233,94353.0,94352.0,0.3608]
[1745742833463,0.3619233,94353.0,94352.0,0.3608]
[1745742835364,0.4679073,94353.0,94352.0,0.3608]
[1745742835772,0.2119367,94347.0,94346.0,0.37818844]
[1745742836163,0.3319367,94347.0,94346.0,0.37818844]
[1745742836363,0.2119457,94343.0,94336.0,0.0315]
[1745742836862,0.2119457,94343.0,94332.0,0.37818844]
[1745742837066,0.2119457,94343.0,94332.0,0.40868844]
[1745742837265,0.4697417,94343.0,94332.0,0.37818844]
[1745742837963,0.4697417,94343.0,94333.0,0.0305]
[1745742839560,0.6458417,94343.0,94333.0,0.0305]
[1745742839761,0.6458417,94343.0,94334.0,0.0306]
[1745742841073,0.5398457,94343.0,94334.0,0.0306]
[1745742841768,0.2119637,94335.0,94334.0,0.0306]
[1745742841975,0.2119637,94335.0,94334.0,0.3914]
[1745742842268,0.3319637,94335.0,94334.0,0.3914]
[1745742842669,0.3651637,94335.0,94334.0,0.3914]
[1745742843272,0.3980637,94335.0,94334.0,0.3914]
[1745742846275,0.3319637,94335.0,94334.0,0.3914]
[1745742846578,0.2119682,94333.0,94332.0,0.36868844]
[1745742846976,0.3179762,94333.0,94332.0,0.36868844]
[1745742847177,0.2119839,94326.0,94325.0,0.3608]
[1745742847981,0.3041839,94326.0,94325.0,0.3608]
[1745742848282,0.4241839,94326.0,94325.0,0.3608]
[1745742848884,0.4241839,94326.0,94325.0,0.3912]
[1745742849582,0.4241839,94326.0,94325.0,0.0304]
[1745742851079,0.4241839,94326.0,94325.0,0.0314]
[1745742852681,0.3919839,94326.0,94325.0,0.0314]
[1745742852888,0.3619839,94326.0,94325.0,0.0645]
[1745742857594,0.12,94326.0,94325.0,0.2764862]
[1745742858186,0.2119751,94330.0,94329.0,0.2119772]
[1745742858587,0.2119751,94330.0,94329.0,0.2219772]
[1745742858782,0.2119751,94330.0,94329.0,0.2756772]
[1745742859597,0.2119751,94330.0,94329.0,0.0637]
[1745742866198,0.3319751,94330.0,94329.0,0.0322]
[1745742866500,0.2120019,94318.0,94317.0,0.36868844]
[1745742867191,0.3320019,94318.0,94317.0,0.36868844]
[1745742867391,0.2120131,94313.0,94312.0,0.0312]
[1745742868193,0.3641131,94313.0,94312.0,0.0312]
[1745742868696,0.2120154,94312.0,94307.0,0.00530181]
[1745742868898,0.2425154,94312.0,94308.0,0.0319]
[1745742869091,0.3946154,94312.0,94308.0,0.0319]
[1745742869698,0.3946154,94312.0,94309.0,0.0313]
[1745742869902,0.3946154,94312.0,94311.0,0.3638]
[1745742870900,0.3946154,94312.0,94311.0,0.3668]
[1745742871789,0.3641154,94312.0,94311.0,0.3668]
[1745742876090,0.2441154,94312.0,94311.0,0.3668]
[1745742878903,0.4202154,94312.0,94311.0,0.3668]
[1745742879103,0.2441154,94312.0,94311.0,0.3668]
[1745742882508,0.2441154,94312.0,94311.0,0.006]
[1745742884305,0.3641154,94312.0,94311.0,0.006]
[1745742885201,0.2441154,94312.0,94311.0,0.006]
[1745742886106,0.3641154,94312.0,94311.0,0.006]
[1745742889005,0.5402154,94312.0,94311.0,0.006]
[1745742889201,0.2120244,94308.0,94307.0,1e-08]
[1745742889408,0.3981244,94308.0,94307.0,1e-08]
[1745742889703,0.5041604,94308.0,94307.0,1e-08]
[1745742890200,0.6879604,94308.0,94307.0,1e-08]
[1745742890704,0.6879604,94308.0,94307.0,0.00400001]
[1745742891511,0.6879604,94308.0,94307.0,1e-08]
[1745742891512,0.6909604,94308.0,94307.0,1e-08]
[1745742892403,0.69900514,94308.0,94307.0,1e-08]
[1745742893393,0.70200514,94308.0,94307.0,1e-08]
[1745742894404,0.69200514,94308.0,94307.0,1e-08]
[1745742894704,1.41360514,94308.0,94307.0,1e-08]
[1745742896602,0.69200514,94308.0,94307.0,1e-08]
[1745742896797,1.41360514,94308.0,94307.0,1e-08]
[1745742900509,1.42360514,94308.0,94307.0,1e-08]
[1745742901612,1.42060514,94308.0,94307.0,1e-08]
[1745742901814,1.42360514,94308.0,94307.0,1e-08]
[1745742902615,0.70400514,94308.0,94307.0,1e-08]
[1745742902819,1.42560514,94308.0,94307.0,1e-08]
[1745742903400,1.42460514,94308.0,94307.0,1e-08]
[1745742903915,1.42160514,94308.0,94307.0,1e-08]
[1745742904114,1.42460514,94308.0,94307.0,1e-08]
[1745742904911,1.42360514,94308.0,94307.0,1e-08]
[1745742908412,0.70200514,94308.0,94307.0,1e-08]
[1745742908617,1.42360514,94308.0,94307.0,1e-08]
[1745742912822,1.31756914,94308.0,94307.0,1e-08]
[1745742913010,1.42360514,94308.0,94307.0,1e-08]
[1745742917229,1.39260514,94308.0,94307.0,1e-08]
[1745742917616,1.39360514,94308.0,94307.0,1e-08]
[1745742918118,1.28756914,94308.0,94307.0,1e-08]
[1745742918714,0.2120559,94294.0,94293.0,0.05799061]
[1745742918920,0.5728559,94294.0,94293.0,0.05799061]
[1745742921218,0.5748559,94294.0,94293.0,0.05799061]
[1745742921613,0.5738559,94294.0,94293.0,0.05799061]
[1745742922127,0.6948559,94294.0,94293.0,0.05799061]
[1745742922616,0.3340559,94294.0,94293.0,0.05799061]
[1745742922822,0.6938559,94294.0,94293.0,0.05799061]
[1745742923123,0.5738559,94294.0,94293.0,0.05799061]
[1745742924120,0.5748559,94294.0,94293.0,0.05799061]
[1745742924317,0.7519559,94294.0,94293.0,0.05799061]
[1745742924724,0.7509559,94294.0,94293.0,0.05799061]
[1745742925118,0.7499559,94294.0,94293.0,0.05799061]
[1745742925423,0.7509559,94294.0,94293.0,0.05799061]
[1745742925823,0.7529559,94294.0,94293.0,0.05799061]
[1745742927229,0.7509559,94294.0,94293.0,0.05799061]
[1745742927427,0.7529559,94294.0,94293.0,0.05799061]
[1745742927814,0.7509559,94294.0,94293.0,0.05799061]
[1745742928020,0.7529559,94294.0,94293.0,0.05799061]
[1745742930414,0.7509559,94294.0,94293.0,0.05799061]
[1745742930621,0.7529559,94294.0,94293.0,0.05799061]
[1745742930825,0.83594717,94294.0,94293.0,0.05799061]
[1745742931029,0.83494717,94294.0,94293.0,0.05799061]
[1745742931821,0.83294717,94294.0,94293.0,0.05799061]
[1745742932021,0.83394717,94294.0,94293.0,0.05799061]
[1745742932626,0.83394717,94294.0,94293.0,0.04057681]
[1745742933123,0.83394717,94294.0,94293.0,0.02375558]
[1745742934119,0.83294717,94294.0,94293.0,0.02375558]
[1745742934319,0.83394717,94294.0,94293.0,0.02375558]
[1745742939432,0.7509559,94294.0,94293.0,0.02375558]
[1745742944544,0.3901559,94294.0,94293.0,0.02375558]
[1745742944837,0.7509559,94294.0,94293.0,0.02375558]
[1745742947038,0.3901559,94294.0,94293.0,0.02375558]
[1745742947241,0.7509559,94294.0,94293.0,0.02375558]
[1745742947638,0.3901559,94294.0,94293.0,0.02375558]
[1745742947938,0.7509559,94294.0,94293.0,0.02375558]
[1745742951732,0.2120806,94283.0,94282.0,0.0314]
[1745742951936,0.2120806,94283.0,94282.0,0.0623]
[1745742952240,0.2120806,94283.0,94282.0,0.1823]
[1745742954440,0.2120806,94283.0,94282.0,0.1853]
[1745742963145,0.2120806,94283.0,94282.0,0.123]
[1745742963344,0.2120806,94283.0,94282.0,0.1544]
[1745742963545,0.2423806,94283.0,94282.0,0.1544]
[1745742964144,0.2423806,94283.0,94282.0,0.0344]
[1745742966236,0.2120806,94283.0,94282.0,0.0344]
[1745742967247,0.2120806,94283.0,94282.0,0.1544]
[1745742968146,0.2120806,94283.0,94282.0,0.0344]
[1745742968347,0.2120806,94283.0,94282.0,0.0645]
[1745742969151,0.2120806,94283.0,94282.0,0.0331]
[1745742969750,0.2120806,94283.0,94282.0,0.066]
[1745742970252,0.2120806,94283.0,94282.0,0.0331]
[1745742970452,0.2425806,94283.0,94282.0,0.003]
[1745742970651,0.2425806,94283.0,94282.0,0.0359]
[1745742971142,0.2425806,94283.0,94282.0,0.0677]
[1745742972452,0.2120806,94283.0,94282.0,0.0677]
[1745742974852,0.3881806,94283.0,94282.0,0.0677]
[1745742975247,0.4210806,94283.0,94282.0,0.0677]
[1745742975655,0.4210806,94283.0,94282.0,0.003]
[1745742977957,0.7818806,94283.0,94282.0,0.003]
[1745742978147,0.9018806,94283.0,94282.0,0.003]
[1745742978955,0.9018806,94283.0,94282.0,0.00044642]
[1745742979158,0.7818806,94283.0,94282.0,0.00044642]
[1745742979855,0.2120918,94278.0,94277.0,0.00530349]
[1745742980244,0.3067918,94278.0,94277.0,0.00530349]
[1745742980954,0.3067918,94278.0,94277.0,0.00730349]
[1745742981746,0.6675918,94278.0,94277.0,0.00730349]
[1745742983448,0.6675918,94278.0,94277.0,0.00930349]
[1745742983846,0.3067918,94278.0,94277.0,0.00930349]
[1745742984046,0.6675918,94278.0,94277.0,0.00930349]
[1745742984252,0.7875918,94278.0,94277.0,0.00930349]
[1745742984853,0.9636918,94278.0,94277.0,0.00930349]
[1745742985058,0.8436918,94278.0,94277.0,0.00930349]
[1745742986150,0.4828918,94278.0,94277.0,0.00930349]
[1745742986348,0.8436918,94278.0,94277.0,0.00930349]
[1745742987455,0.4828918,94278.0,94277.0,0.00930349]
[1745742987655,0.8436918,94278.0,94277.0,0.00930349]
[1745742989762,0.4828918,94278.0,94277.0,0.00930349]
[1745742989955,0.8436918,94278.0,94277.0,0.00930349]
[1745742991153,0.9636918,94278.0,94277.0,0.00930349]
[1745742992161,0.8436918,94278.0,94277.0,0.00930349]
[1745742993755,0.4828918,94278.0,94277.0,0.00930349]
[1745742993956,0.8436918,94278.0,94277.0,0.00930349]
[1745742994557,0.8436918,94278.0,94277.0,0.00502854]
[1745742997653,0.4828918,94278.0,94277.0,0.00502854]
[1745742997853,0.8436918,94278.0,94277.0,0.00502854]
[1745743000656,0.8126918,94278.0,94277.0,0.00502854]
[1745743001061,0.9326918,94278.0,94277.0,0.00502854]
[1745743002254,0.8126918,94278.0,94277.0,0.00502854]
[1745743002659,0.4518918,94278.0,94277.0,0.00502854]
[1745743002864,0.8126918,94278.0,94277.0,0.00502854]
[1745743004267,0.8136918,94278.0,94277.0,0.00302854]
[1745743004764,0.8146918,94278.0,94277.0,0.00102854]
[1745743006456,0.4538918,94278.0,94277.0,0.00102854]
[1745743006656,0.8146918,94278.0,94277.0,0.00102854]
[1745743008065,0.9346918,94278.0,94277.0,0.00102854]
[1745743009069,0.8146918,94278.0,94277.0,0.00102854]
[1745743009564,0.7823918,94278.0,94277.0,0.00072953]
[1745743010669,0.7823918,94278.0,94277.0,0.00044573]
[1745743021182,0.8488718,94278.0,94277.0,0.00044573]
[1745743023483,0.4880718,94278.0,94277.0,0.00044573]
[1745743023686,0.8488718,94278.0,94277.0,0.00044573]
[1745743024585,0.4880718,94278.0,94277.0,0.00044573]
[1745743024773,0.8488718,94278.0,94277.0,0.00044573]
[1745743024978,0.8528718,94278.0,94277.0,0.00044573]
[1745743026079,0.8558718,94278.0,94277.0,0.00044573]
[1745743026677,0.8548718,94278.0,94277.0,0.00044573]
[1745743028291,0.8508718,94278.0,94277.0,0.00044573]
[1745743028479,0.8548718,94278.0,94277.0,0.00044573]
[1745743030587,0.4940718,94278.0,94277.0,0.00044573]
[1745743030783,0.8548718,94278.0,94277.0,0.00044573]
[1745743031984,0.8508718,94278.0,94277.0,0.00013465]
[1745743032182,0.8548718,94278.0,94277.0,0.00013465]
[1745743032578,0.8508718,94278.0,94277.0,0.00013465]
[1745743032778,0.8548718,94278.0,94277.0,0.00013465]
[1745743034091,0.4940718,94278.0,94277.0,0.00013465]
[1745743034494,0.8548718,94278.0,94277.0,0.00013465]
[1745743036688,0.93786307,94278.0,94277.0,0.00013465]
[1745743037287,0.93386307,94278.0,94277.0,0.00013465]
[1745743037481,0.93786307,94278.0,94277.0,0.00013465]
[1745743038189,0.93686307,94278.0,94277.0,0.00013465]
[1745743038390,0.93586307,94278.0,94277.0,0.00013465]
[1745743038796,0.93286307,94278.0,94277.0,0.00013465]
[1745743039092,0.93586307,94278.0,94277.0,0.00013465]
[1745743039689,0.93286307,94278.0,94277.0,0.00013465]
[1745743039883,0.93586307,94278.0,94277.0,0.00013465]
[1745743042388,0.4920718,94278.0,94277.0,0.00013465]
[1745743042584,0.8528718,94278.0,94277.0,0.00013465]
[1745743045494,0.8518718,94278.0,94277.0,0.00013465]
[1745743047000,0.2121166,94267.0,94266.0,0.01993727]
[1745743048101,0.2121166,94267.0,94266.0,0.13993727]
[1745743049802,0.29510787,94267.0,94266.0,0.13993727]
[1745743058806,0.2121166,94267.0,94266.0,0.13993727]
[1745743064002,0.2430166,94267.0,94266.0,0.13993727]
[1745743066608,0.2121166,94267.0,94266.0,0.13993727]
[1745743074310,0.2433166,94267.0,94266.0,0.01993727]
[1745743078715,0.32630787,94267.0,94266.0,0.01993727]
[1745743079316,0.2121346,94259.0,94258.0,0.3608]
[1745743079511,0.2121346,94259.0,94258.0,0.3936]
[1745743080219,0.2121346,94259.0,94258.0,0.5136]
[1745743080719,0.2121346,94259.0,94258.0,0.1528]
[1745743080915,0.2121346,94259.0,94258.0,0.1829]
[1745743081921,0.2121346,94259.0,94258.0,0.1548]
[1745743082114,0.2442346,94259.0,94258.0,0.1568]
[1745743082309,0.2442346,94259.0,94258.0,0.0368]
[1745743082504,0.2442346,94259.0,94258.0,0.0669]
[1745743082718,0.2121346,94259.0,94258.0,0.0669]
[1745743083817,0.22028707,94259.0,94258.0,0.0669]
[1745743091132,0.22028707,94259.0,94258.0,0.1869]
[1745743091930,0.22028707,94259.0,94258.0,0.1849]
[1745743092131,0.22128707,94259.0,94258.0,0.0649]
[1745743092435,0.22228707,94259.0,94258.0,0.0629]
[1745743092736,0.00915247,94259.0,94258.0,0.0729]
[1745743092936,0.22128707,94259.0,94258.0,0.0729]
[1745743093126,0.22028707,94259.0,94258.0,0.1929]
[1745743095736,0.22028707,94259.0,94258.0,0.1939]
[1745743095937,0.22028707,94259.0,94258.0,0.1949]
[1745743096241,0.22028707,94259.0,94258.0,0.1939]
[1745743096428,0.22028707,94259.0,94258.0,0.1849]
[1745743098239,0.22028707,94259.0,94258.0,0.1839]
[1745743098936,0.22028707,94259.0,94258.0,0.1829]
[1745743099140,0.22028707,94259.0,94258.0,0.1849]
[1745743102635,0.08299127,94266.0,94265.0,0.2121211]
[1745743102838,0.08299127,94266.0,94265.0,0.5829211]
[1745743103235,0.08299127,94286.0,94274.0,0.0530248]
[1745743103542,0.2120942,94278.0,94277.0,0.5728883]
[1745743104336,0.2120942,94278.0,94277.0,0.6928883]
[1745743104541,0.219871,94278.0,94277.0,0.4808]
[1745743105145,0.222871,94278.0,94277.0,0.4808]
[1745743105642,0.222871,94278.0,94277.0,0.5455]
[1745743106028,0.223871,94278.0,94277.0,0.5455]
[1745743106438,0.221871,94278.0,94277.0,0.5455]
[1745743107537,0.219871,94278.0,94277.0,0.5455]
[1745743108245,0.219871,94278.0,94277.0,0.5465]
[1745743109344,0.219871,94278.0,94277.0,0.5475]
[1745743109848,0.219871,94278.0,94277.0,0.5465]
[1745743110035,0.219871,94278.0,94277.0,0.5475]
[1745743110238,0.250471,94278.0,94277.0,0.4275]
[1745743110433,0.250471,94278.0,94277.0,0.4265]
[1745743110634,0.250471,94278.0,94277.0,0.4275]
[1745743111041,0.250471,94278.0,94277.0,0.5475]
[1745743113141,0.250471,94278.0,94277.0,0.4275]
[1745743116445,0.250471,94278.0,94277.0,0.0667]
[1745743116645,0.250471,94278.0,94277.0,0.4275]
[1745743117040,0.250471,94278.0,94277.0,0.3952]
[1745743117347,0.281771,94278.0,94277.0,0.4828]
[1745743117552,0.281771,94278.0,94277.0,0.122]
[1745743117752,0.29259246,94278.0,94277.0,0.0915]
[1745743117947,1.17901047,94278.0,94277.0,0.0416]
[1745743118145,0.2120941,94277.0,94276.0,0.36868844]
[1745743118549,0.5251941,94277.0,94276.0,0.36868844]
[1745743118749,0.2121391,94257.0,94256.0,0.3608]
[1745743120151,0.2121391,94257.0,94256.0,0.3628]
[1745743121156,0.2436391,94257.0,94256.0,0.3628]
[1745743121350,0.2436391,94257.0,94256.0,0.3638]
[1745743121549,0.2436391,94257.0,94256.0,0.3628]
[1745743121950,0.2758391,94257.0,94256.0,0.3628]
[1745743122152,0.2758391,94257.0,94256.0,0.002]
[1745743124460,0.2758391,94257.0,94256.0,0.001]
[1745743124653,0.2778391,94257.0,94256.0,0.001]
[1745743125561,0.2121459,94254.0,94253.0,0.0326]
[1745743126763,0.2131459,94254.0,94253.0,0.0326]
[1745743126961,0.2141459,94254.0,94253.0,0.0326]
[1745743127562,0.2131459,94254.0,94253.0,0.0326]
[1745743127764,0.2141459,94254.0,94253.0,0.0326]
[1745743128260,0.2121481,94253.0,94252.0,0.3608]
[1745743128458,0.2769481,94253.0,94252.0,0.3608]
[1745743129552,0.2121504,94252.0,94251.0,0.0327]
[1745743129859,0.2121504,94252.0,94251.0,0.3935]
[1745743130054,0.2421504,94252.0,94251.0,0.3935]
[1745743141267,0.2121504,94252.0,94251.0,0.3608]
[1745743141459,0.3883526,94251.0,94250.0,0.001061]
[1745743141665,0.4201526,94251.0,94250.0,0.001061]
[1745743141865,0.4512526,94251.0,94250.0,0.001061]
[1745743142068,0.4837526,94251.0,94250.0,0.001061]
[1745743142369,0.6037526,94251.0,94250.0,0.001061]
[1745743143567,0.9645526,94251.0,94250.0,0.001061]
[1745743143768,0.9655526,94251.0,94250.0,0.001061]
[1745743144865,0.9665526,94251.0,94250.0,0.001061]
[1745743146469,0.3883594,94248.0,94247.0,0.00258205]
[1745743147263,0.5083594,94248.0,94247.0,0.00258205]
[1745743154163,0.3321594,94248.0,94247.0,0.00258205]
[1745743154472,0.3321594,94248.0,94247.0,0.00200073]
[1745743161078,0.2121594,94248.0,94247.0,0.12200073]
[1745743161279,0.3608,94259.0,94247.0,0.12200073]
[1745743161476,0.0530379,94252.0,94249.0,0.3608]
[1745743161778,0.2121526,94251.0,94250.0,0.0302]
[1745743161974,0.2121526,94251.0,94250.0,0.0602]
[1745743162176,0.2121526,94251.0,94250.0,0.1802]
[1745743164382,0.002,94251.0,94250.0,0.3923549]
[1745743164579,0.2141526,94251.0,94250.0,0.3923549]
[1745743164883,0.2131526,94251.0,94250.0,0.3923549]
[1745743165068,0.2141526,94251.0,94250.0,0.3923549]
[1745743169677,0.2141526,94251.0,94250.0,1.07194334]
[1745743170685,0.2141526,94251.0,94250.0,1.08194334]
[1745743180387,0.2131526,94251.0,94250.0,1.08194334]
[1745743180594,0.2141526,94251.0,94250.0,1.08194334]
[1745743181683,0.2141526,94251.0,94250.0,0.72114334]
[1745743181884,0.2141526,94251.0,94250.0,1.08194334]
[1745743189697,0.2141526,94251.0,94250.0,0.72114334]
[1745743189891,0.2141526,94251.0,94250.0,1.08194334]
[1745743192702,0.2441526,94251.0,94250.0,1.08194334]
[1745743195005,0.2441526,94251.0,94250.0,0.86978844]
[1745743201218,0.2441526,94251.0,94250.0,0.74978844]
[1745743203217,0.2441526,94251.0,94250.0,0.86978844]
[1745743203925,0.002,94251.0,94250.0,1.08194334]
[1745743204113,0.212127,94263.0,94250.0,0.97588844]
[1745743204417,0.2651556,94266.0,94265.0,0.2121188]
[1745743204624,0.2651556,94266.0,94265.0,0.53090724]
[1745743205319,0.2651556,94266.0,94265.0,0.65090724]
[1745743205721,0.0530259,94273.0,94270.0,0.2651324]
[1745743205925,0.265118,94281.0,94280.0,0.2120828]
[1745743206115,0.265118,94281.0,94280.0,0.5728828]
[1745743206824,0.265118,94281.0,94280.0,0.3608]
[1745743207009,0.265118,94281.0,94280.0,0.3708]
[1745743207215,0.265118,94281.0,94280.0,0.3738]
[1745743207522,0.265118,94281.0,94280.0,0.4379]
[1745743207923,0.265118,94281.0,94280.0,0.6499873]
[1745743209821,0.0530092,94303.0,94280.0,0.86275644]
[1745743210019,0.2650898,94291.0,94290.0,0.212055]
[1745743210220,0.2650898,94291.0,94290.0,0.692855]
[1745743211429,0.2650898,94291.0,94290.0,0.694855]
[1745743212718,0.2660898,94291.0,94290.0,0.694855]
[1745743213724,0.2660898,94291.0,94290.0,1.01364344]
[1745743213922,0.2660898,94291.0,94290.0,1.02364344]
[1745743218625,0.2130739,94291.0,94290.0,1.02364344]
[1745743222341,0.2130739,94291.0,94290.0,0.90364344]
[1745743223733,0.2130739,94291.0,94290.0,0.93404344]
[1745743227532,0.2452739,94291.0,94290.0,0.93404344]
[1745743229531,0.2442739,94291.0,94290.0,0.93404344]
[1745743230529,0.2442739,94291.0,94290.0,0.93304344]
[1745743231748,0.212054,94295.0,94294.0,0.2650649]
[1745743231931,0.085809,94303.0,94298.0,0.0530113]
[1745743232135,0.2133424,94301.0,94300.0,0.2120424]
[1745743232338,0.2133424,94301.0,94300.0,0.56373084]
[1745743233345,0.2133424,94301.0,94300.0,0.59443084]
[1745743233346,0.2772424,94301.0,94300.0,0.59443084]
[1745743233545,0.2772424,94301.0,94300.0,0.60503929]
[1745743234046,0.2782424,94301.0,94300.0,0.60503929]
[1745743234744,0.2802424,94301.0,94300.0,0.60503929]
[1745743236940,0.2802424,94301.0,94300.0,0.34948844]
[1745743237548,0.2802424,94301.0,94300.0,0.56153084]
[1745743239947,0.2802424,94301.0,94300.0,0.34948844]
[1745743240847,0.2802424,94301.0,94300.0,0.31878844]
[1745743241150,0.5062864,94301.0,94300.0,0.31278844]
[1745743241545,0.5062864,94301.0,94300.0,0.26990524]
[1745743242849,0.58928784,94301.0,94300.0,0.26990524]
[1745743243047,0.2120604,94292.0,94291.0,0.0315]
[1745743243445,0.2120604,94292.0,94291.0,0.2435626]
[1745743243846,0.2120604,94292.0,94291.0,0.0628]
[1745743244052,0.2738604,94292.0,94291.0,0.0628]
[1745743244254,0.3938604,94292.0,94291.0,0.0638]
[1745743247954,0.3938604,94292.0,94291.0,0.4246]
[1745743251152,0.2738604,94292.0,94291.0,0.4246]
[1745743251752,0.2738604,94292.0,94291.0,0.6366626]
[1745743252258,0.2435604,94292.0,94291.0,0.6366626]
[1745743252445,0.2120604,94292.0,94291.0,0.6366626]
[1745743252651,0.2120604,94292.0,94291.0,0.6466626]
[1745743254864,0.2120604,94292.0,94291.0,0.91656784]
[1745743257658,0.0530114,94299.0,94291.0,0.75752034]
[1745743257859,0.2120473,94298.0,94297.0,0.2120469]
[1745743258061,0.1142072,94306.0,94298.0,0.0530113]
[1745743258062,0.0307,94306.0,94298.0,0.0530113]
[1745743258358,0.2133421,94301.0,94300.0,0.2120424]
[1745743259557,0.2153421,94301.0,94300.0,0.2120424]
[1745743259857,0.2163421,94301.0,94300.0,0.2120424]
[1745743260465,0.0043,94301.0,94300.0,0.2120424]
[1745743261152,0.0043,94301.0,94300.0,0.3320424]
[1745743262062,0.0043,94301.0,94300.0,0.3420424]
[1745743262966,0.2163401,94301.0,94300.0,0.3420424]
[1745743263561,0.2163401,94301.0,94300.0,0.61194764]
[1745743267064,0.0043,94301.0,94300.0,0.61194764]
[1745743269056,0.2163401,94301.0,94300.0,0.61194764]
[1745743270258,0.0043,94301.0,94300.0,0.61194764]
[1745743270768,0.0043,94301.0,94300.0,0.97274764]
[1745743271964,0.2163401,94301.0,94300.0,0.97274764]
[1745743272356,0.2163401,94301.0,94300.0,1.00504764]
[1745743273168,0.2163401,94301.0,94300.0,0.91714764]
[1745743274263,0.2163401,94301.0,94300.0,1.03714764]
[1745743275068,0.2484401,94301.0,94300.0,0.91714764]
[1745743276274,0.2474401,94301.0,94300.0,0.91714764]
[1745743276574,0.2464401,94301.0,94300.0,0.55634764]
[1745743276766,0.2464401,94301.0,94300.0,0.91714764]
[1745743277566,0.2464401,94301.0,94300.0,0.63070524]
[1745743277775,0.2464401,94301.0,94300.0,0.84274764]
[1745743278266,0.2464401,94301.0,94300.0,0.63070524]
[1745743279061,0.3664401,94301.0,94300.0,0.63070524]
[1745743279477,0.3664401,94301.0,94300.0,0.60523569]
[1745743281677,0.3664401,94301.0,94300.0,0.24443569]
[1745743282869,0.4724841,94301.0,94300.0,0.24443569]
[1745743286971,0.4724841,94301.0,94298.0,0.3608]
[1745743287171,0.2120446,94299.0,94298.0,0.3608]
[1745743287575,0.2427446,94299.0,94298.0,0.3608]
[1745743287773,0.2120559,94294.0,94293.0,0.0319]
[1745743287980,0.2120559,94294.0,94293.0,0.3927]
[1745743288166,0.3320559,94294.0,94293.0,0.3927]
[1745743288572,0.3971559,94294.0,94293.0,0.3927]
[1745743289379,0.3971559,94294.0,94293.0,0.0319]
[1745743289580,0.3971559,94294.0,94293.0,0.3927]
[1745743289881,0.3971559,94294.0,94293.0,0.0329]
[1745743290075,0.3971559,94294.0,94293.0,0.3937]
[1745743290380,0.3971559,94294.0,94293.0,0.0329]
[1745743290980,0.3971559,94294.0,94293.0,0.3937]
[1745743291581,0.3971559,94294.0,94293.0,0.4246]
[1745743292385,0.3971559,94294.0,94293.0,0.0638]
[1745743292585,0.3971559,94294.0,94293.0,0.4246]
[1745743292787,0.48015734,94294.0,94293.0,0.4246]
[1745743293386,0.48015734,94294.0,94293.0,0.0638]
[1745743293586,0.20300144,94294.0,94293.0,0.6366581]
[1745743293977,0.20300144,94294.0,94293.0,0.6466581]
[1745743294177,0.08300144,94294.0,94293.0,0.6466581]
[1745743294588,0.29505734,94294.0,94293.0,0.6466581]
[1745743295191,0.29505734,94294.0,94293.0,0.7666581]
[1745743295584,0.2120559,94294.0,94293.0,0.7666581]
[1745743298078,0.2120559,94294.0,94293.0,0.6466581]
[1745743298894,0.2120559,94294.0,94293.0,0.89109379]
[1745743299400,0.2120559,94294.0,94293.0,0.53029379]
[1745743299604,0.2650606,94299.0,94298.0,0.2120469]
[1745743300296,0.2120469,94298.0,94297.0,0.0644]
[1745743300494,0.2743469,94298.0,94297.0,0.0644]
[1745743301293,0.2743469,94298.0,94297.0,0.2764491]
[1745743301495,0.2753469,94298.0,94297.0,0.2764491]
[1745743302797,0.2753469,94298.0,94297.0,0.6372491]
[1745743302997,0.2441469,94298.0,94297.0,0.6372491]
[1745743304586,0.2441469,94298.0,94297.0,0.88168479]
[1745743307488,0.2441469,94298.0,94297.0,0.66963569]
[1745743307687,0.2752469,94298.0,94297.0,0.66963569]
[1745743308087,0.3952469,94298.0,94297.0,0.66963569]
[1745743308890,0.3641469,94298.0,94297.0,0.88168479]
[1745743309089,0.2441469,94298.0,94297.0,0.88168479]
[1745743310188,0.3641469,94298.0,94297.0,0.88168479]
[1745743311193,0.2441469,94298.0,94297.0,0.88168479]
[1745743321200,0.2441469,94298.0,94297.0,1.00168479]
[1745743329203,0.2441469,94298.0,94297.0,0.78963569]
[1745743329398,0.2441469,94298.0,94297.0,0.75703569]
[1745743329602,0.3060469,94298.0,94297.0,0.39623569]
[1745743330113,0.3060469,94298.0,94297.0,0.27623569]
[1745743331310,0.2759469,94298.0,94297.0,0.27623569]
[1745743332913,0.2759469,94298.0,94297.0,0.30653569]
[1745743333103,0.2759469,94298.0,94297.0,0.42653569]
[1745743337019,0.35894834,94298.0,94297.0,0.42653569]
[1745743341919,0.2759469,94298.0,94297.0,0.42653569]
[1745743359321,0.35894834,94298.0,94297.0,0.42653569]
[1745743360626,0.35894834,94298.0,94297.0,0.39623569]